bitfinex-derivatives/quotes_SOLF0:USTF0_20240927
["timestamp","ask_amount","ask_price","bid_price","bid_amount"]
[1727420780649,7.81,157.41,157.37,7.81]
[1727420780851,3.1761,157.4,157.37,7.81]
[1727420781053,7.81,157.41,157.37,7.81]
[1727420781250,7.81,157.41,157.36,2.6924]
[1727420781457,7.81,157.41,157.36,10.5024]
[1727420781853,7.81,157.39,157.35,3.177]
[1727420782052,7.81,157.39,157.34,7.81]
[1727420782449,7.81,157.4,157.35,10.9869]
[1727420782651,7.81,157.4,157.35,7.81]
[1727420783652,7.81,157.4,157.36,3.1768]
[1727420783851,7.81,157.39,157.31,3.23627159]
[1727420784053,7.81,157.39,157.34,7.81]
[1727420784355,7.81,157.36,157.31,7.81]
[1727420784854,7.81,157.36,157.32,7.81]
[1727420785047,2.6226,157.42,157.3,3.9436]
[1727420785048,3.18089296,157.39,157.34,7.81]
[1727420785249,7.81,157.38,157.34,7.81]
[1727420785452,7.81,157.38,157.3,3.9436]
[1727420785652,7.81,157.37,157.3,3.9436]
[1727420785956,7.81,157.37,157.32,7.81]
[1727420786153,7.81,157.37,157.32,3.1777]
[1727420786352,7.81,157.37,157.32,10.9877]
[1727420786957,10.9868,157.37,157.32,10.9877]
[1727420787252,7.81,157.36,157.31,7.81]
[1727420787458,10.9871,157.36,157.31,7.81]
[1727420787657,7.81,157.36,157.31,3.1778]
[1727420787849,7.81,157.33,157.21,68.6]
[1727420788055,7.81,157.33,157.28,7.81]
[1727420788251,7.81,157.33,157.29,3.1783]
[1727420788457,2.6226,157.42,157.29,7.81]
[1727420788654,7.81,157.34,157.29,7.81]
[1727420789054,7.81,157.34,157.3,3.1781]
[1727420789259,3.1775,157.33,157.22,3.9773]
[1727420789455,3.1775,157.33,157.29,7.81]
[1727420789958,7.81,157.31,157.28,3.1784]
[1727420790561,7.81,157.31,157.27,3.1787]
[1727420791461,7.81,157.31,157.27,10.9887]
[1727420793056,10.9879,157.31,157.27,10.9887]
[1727420793260,1.3439,157.35,157.22,3.9773]
[1727420793459,7.81,157.3,157.25,7.81]
[1727420793655,10.9883,157.3,157.25,7.81]
[1727420793958,7.81,157.3,157.22,3.9773]
[1727420794160,3.1785,157.29,157.24,7.81]
[1727420795056,10.9882,157.3,157.24,7.81]
[1727420795255,3.1782,157.3,157.26,7.81]
[1727420795656,3.178,157.31,157.26,10.9888]
[1727420795957,7.81,157.32,157.26,10.9888]
[1727420796558,3.178,157.31,157.26,10.9888]
[1727420797359,3.1781,157.3,157.26,10.9888]
[1727420798254,7.81,157.31,157.22,3.9773]
[1727420798564,7.81,157.3,157.24,7.81]
[1727420798864,7.81,157.3,157.24,10.9892]
[1727420799457,3.1785,157.29,157.24,10.9892]
[1727420799658,3.1785,157.29,157.25,3.1791]
[1727420800556,10.9885,157.29,157.25,3.1791]
[1727420800960,10.9885,157.29,157.22,3.9773]
[1727420800961,7.81,157.27,157.23,7.81]
[1727420801557,10.9889,157.27,157.23,7.81]
[1727420801958,7.81,157.26,157.22,7.1569]
[1727420802161,10.9891,157.26,157.22,7.157]
[1727420802760,7.81,157.26,157.22,3.9773]
[1727420802966,3.1791,157.25,157.22,3.9773]
[1727420803668,10.989,157.26,157.22,3.9773]
[1727420804058,7.81,157.27,157.22,7.157]
[1727420804257,7.81,157.27,157.23,7.81]
[1727420804664,10.9888,157.27,157.23,10.9895]
[1727420805360,3.1789,157.26,157.23,3.1795]
[1727420805666,3.1789,157.26,157.22,7.157]
[1727420805959,1.3055,157.34,157.22,11.7873]
[1727420806179,1.3055,157.34,157.25,7.81]
[1727420806180,7.81,157.3,157.25,7.81]
[1727420806462,7.81,157.29,157.25,7.81]
[1727420806768,10.9884,157.29,157.25,7.81]
[1727420806967,10.9884,157.29,157.25,3.179]
[1727420809363,7.81,157.28,157.25,3.179]
[1727420809562,7.81,157.28,157.26,3.1789]
[1727420809767,7.81,157.28,157.24,7.81]
[1727420810069,10.9886,157.28,157.23,9.093]
[1727420810461,7.81,157.28,157.23,9.093]
[1727420810866,3.1788,157.27,157.23,9.093]
[1727420811864,10.9889,157.26,157.22,1.3691]
[1727420812061,7.81,157.26,157.22,1.3691]
[1727420812361,7.81,157.26,157.19,1.2789]
[1727420812566,7.81,157.26,157.2,8.97845681]
[1727420812868,3.1796,157.23,157.2,4.34855681]
[1727420813167,7.81,157.24,157.2,1.16845681]
[1727420813359,7.81,157.21,157.2,1.16845681]
[1727420813565,7.81,157.21,157.17,1.3436]
[1727420813761,7.81,157.23,157.18,7.81]
[1727420813959,7.81,157.23,157.2,3.18]
[1727420814369,7.81,157.23,157.18,7.81]
[1727420814665,10.9897,157.23,157.19,3.1802]
[1727420815065,7.81,157.23,157.19,3.1802]
[1727420815364,3.1798,157.22,157.18,3.1804]
[1727420815967,3.1798,157.22,157.17,9.1536]
[1727420816465,10.9896,157.23,157.19,3.1803]
[1727420817059,75.0351,157.33,157.2,7.81]
[1727420817265,7.81,157.25,157.2,7.81]
[1727420817758,10.9892,157.25,157.21,3.1798]
[1727420818363,10.9892,157.25,157.2,7.81]
[1727420818364,7.81,157.22,156.99,2.93525313]
[1727420818665,7.81,157.17,157.12,2.6239]
[1727420819366,7.81,157.16,157.12,2.6239]
[1727420819762,3.23745937,157.24,157.12,10.4339]
[1727420819958,3.1809,157.17,157.14,7.81]
[1727420820164,3.1809,157.17,157.12,4.4288]
[1727420820165,7.81,157.18,157.13,1.3768]
[1727420820459,12.23,157.19,157.13,1.3768]
[1727420821762,96.70537627,157.26,157.13,1.3768]
[1727420821967,12.23,157.23,157.14,12.23]
[1727420822172,12.23,157.23,157.16,3.1808]
[1727420822368,12.23,157.23,157.14,12.23]
[1727420822662,3.11021325,157.26,157.13,1.3768]
[1727420822663,12.23,157.21,157.13,1.3768]
[1727420823065,12.23,157.19,157.13,1.3768]
[1727420823370,3.1809,157.17,157.13,1.3768]
[1727420825063,3.1805,157.19,157.13,1.3768]
[1727420825263,3.24813145,157.26,157.16,12.23]
[1727420825460,3.24813145,157.26,157.17,1.3736]
[1727420825765,3.1797,157.23,157.18,3.1805]
[1727420826069,3.24813145,157.26,157.18,3.1805]
[1727420826664,3.1799,157.22,157.18,3.1805]
[1727420826860,3.1799,157.22,157.17,4.5543]
[1727420827464,12.23,157.23,157.17,1.3736]
[1727420827662,12.23,157.2,157.13,1.3768]
[1727420828068,12.23,157.18,157.13,1.3768]
[1727420829163,3.1812,157.15,157.13,1.3768]
[1727420829468,12.23,157.18,157.13,1.3768]
[1727420829775,12.23,157.16,157.12,1.2471]
[1727420830273,3.1812,157.15,157.12,1.2471]
[1727420830678,12.23,157.16,157.12,1.2471]
[1727420831077,3.1812,157.15,157.12,1.2471]
[1727420831272,3.1812,157.15,157.1,3.1821]
[1727420831476,12.23,157.16,157.09,1.3105]
[1727420831674,12.23,157.18,157.1,1.2858]
[1727420831973,12.23,157.18,157.11,3.1818]
[1727420832572,3.10906041,157.2,157.1,1.2858]
[1727420832872,12.23,157.16,157.1,1.2858]
[1727420833076,3.1815,157.14,157.1,1.2858]
[1727420833868,12.23,157.16,157.1,1.2858]
[1727420833869,3.1816,157.13,157.1,1.2858]
[1727420834075,12.23,157.14,157.1,1.2858]
[1727420834279,12.23,157.14,157.06,3.1829]
[1727420834574,12.23,157.12,157.04,2.6359]
[1727420834770,3.1825,157.09,157.04,5.8191]
[1727420834969,3.1825,157.09,157.04,2.6359]
[1727420835369,3.20302849,157.14,157.04,14.8659]
[1727420835370,12.23,157.14,157.04,14.8659]
[1727420835575,1.2463,157.18,157.04,14.8659]
[1727420835778,12.23,157.13,157.04,14.8659]
[1727420836176,12.23,157.11,157.01,1.2985]
[1727420836380,12.23,157.13,157.04,1.3231]
[1727420836575,12.23,157.13,157.03,12.23]
[1727420836770,3.182,157.12,157.07,3.1826]
[1727420837178,3.1816,157.13,157.08,3.1826]
[1727420837481,12.23,157.15,157.08,3.1826]
[1727420837979,3.182,157.11,157.07,3.1827]
[1727420838181,12.23,157.15,157.07,3.1827]
[1727420838480,12.23,157.15,157.05,12.23]
[1727420838781,12.23,157.17,157.07,12.23]
[1727420839081,3.1813,157.15,157.1,3.182]
[1727420839775,3.1816,157.13,157.08,5.7413]
[1727420840182,12.23,157.15,157.09,3.1824]
[1727420841772,3.1816,157.13,157.09,3.1824]
[1727420842477,12.23,157.15,157.04,1.3231]
[1727420842677,12.23,157.15,157.06,2.7147]
[1727420843181,12.23,157.15,157.08,3.1824]
[1727420843476,3.1821,157.11,157.07,3.1827]
[1727420843681,12.23,157.11,157.06,2.7147]
[1727420844081,3.23949716,157.2,157.06,2.7147]
[1727420844282,12.23,157.12,157.06,2.7147]
[1727420844679,3.1823,157.1,157.06,5.8975]
[1727420844887,12.23,157.14,157.06,2.7147]
[1727420845582,12.23,157.16,157.06,14.9447]
[1727420846186,3.1808,157.17,157.13,3.1815]
[1727420846386,12.23,157.2,157.11,1.3081]
[1727420846683,12.23,157.2,157.12,3.1817]
[1727420846684,3.1811,157.16,157.12,3.1817]
[1727420846884,12.23,157.18,157.11,1.3081]
[1727420847884,96.75552719,157.21,157.11,1.3081]
[1727420848093,12.23,157.15,157.11,1.3081]
[1727420848780,3.1814,157.14,157.11,1.3081]
[1727420849087,12.23,157.15,157.11,1.3081]
[1727420849290,3.1812,157.15,157.11,4.49]
[1727420849485,3.1812,157.15,157.11,1.3081]
[1727420850287,3.1812,157.15,157.11,4.49]
[1727420851388,3.181,157.16,157.12,3.1817]
[1727420851591,12.23,157.17,157.11,1.3081]
[1727420852200,12.23,157.15,157.06,2.7147]
[1727420852698,12.23,157.13,157.06,2.7147]
[1727420853701,3.1819,157.12,157.08,3.1824]
[1727420854899,12.23,157.13,157.06,2.7147]
[1727420855099,6.3612,157.18,157.06,2.7147]
[1727420855301,12.23,157.12,157.06,2.7147]
[1727420856002,3.1823,157.1,157.06,5.8975]
[1727420856501,12.23,157.12,157.06,2.7147]
[1727420856693,3.1821,157.11,157.06,2.7147]
[1727420856897,12.23,157.14,157.06,2.7147]
[1727420857304,3.1819,157.12,157.08,3.1826]
[1727420857992,3.182,157.11,157.07,3.1827]
[1727420860903,12.23,157.14,157.06,2.7147]
[1727420861107,78.2577,157.25,157.12,12.23]
[1727420861108,68.72,157.25,157.12,12.23]
[1727420861302,12.23,157.24,157.14,12.23]
[1727420861496,3.1805,157.19,157.15,3.1811]
[1727420862002,3.1805,157.18,157.14,3.1813]
[1727420862704,12.23,157.21,157.13,2.6733]
[1727420862907,12.23,157.21,157.15,3.1809]
[1727420863707,3.1805,157.19,157.15,3.1809]
[1727420864200,12.23,157.21,157.13,2.6733]
[1727420864201,12.23,157.23,157.14,12.23]
[1727420864406,12.23,157.25,157.14,13.4984]
[1727420864597,12.23,157.21,157.14,1.2684]
[1727420864797,3.1806,157.18,157.14,4.4497]
[1727420865003,3.1806,157.18,157.13,2.6733]
[1727420865302,12.23,157.21,157.13,2.6733]
[1727420865303,15.47623198,157.21,157.13,5.8549]
[1727420865497,15.47623198,157.21,157.13,2.6733]
[1727420865904,12.23,157.21,157.14,3.1813]
[1727420866104,12.23,157.21,157.13,1.3423]
[1727420866305,12.23,157.19,157.1,1.2684]
[1727420866609,12.23,157.17,157.08,12.23]
[1727420866809,12.23,157.17,157.07,2.6119]
[1727420867009,3.1815,157.14,157.1,3.182]
[1727420867411,12.23,157.17,157.07,2.6119]
[1727420867610,15.43932771,157.17,157.07,2.6119]
[1727420867815,12.23,157.17,157.09,3.1823]
[1727420868615,12.23,157.17,157.1,3.1821]
[1727420869016,3.1815,157.14,157.1,3.1821]
[1727420869514,12.23,157.17,157.1,3.1821]
[1727420870019,3.1817,157.13,157.1,3.1821]
[1727420870315,3.1817,157.13,157.09,3.1823]
[1727420870815,3.1818,157.12,157.09,3.1823]
[1727420871414,3.10845948,157.18,157.08,12.23]
[1727420871415,3.1815,157.14,157.08,12.23]
[1727420872012,3.1812,157.15,157.08,12.23]
[1727420872207,3.10678212,157.19,157.1,12.23]
[1727420872208,12.23,157.19,157.1,12.23]
[1727420872413,12.23,157.19,157.1,15.46124439]
[1727420872611,3.1808,157.17,157.13,3.1815]
[1727420874108,3.1806,157.18,157.14,3.1813]
[1727420876221,12.23,157.19,157.12,3.1817]
[1727420876414,12.23,157.19,157.11,1.2816]
[1727420877019,3.1811,157.16,157.13,3.1815]
[1727420878621,7.6041,157.24,157.14,3.1813]
[1727420878822,12.23,157.2,157.14,3.1813]
[1727420879321,3.1807,157.18,157.14,3.1813]
[1727420879822,3.1808,157.17,157.14,3.1813]
[1727420880921,12.23,157.2,157.15,3.1811]
[1727420881818,3.1804,157.19,157.15,3.1811]
[1727420882023,12.23,157.27,157.17,12.23]
[1727420882319,12.23,157.27,157.13,4.30041358]
[1727420882320,12.23,157.28,157.19,12.23]
[1727420882518,12.23,157.28,157.2,3.1801]
[1727420882917,3.1793,157.25,157.21,3.1799]
[1727420883119,12.23,157.28,157.19,12.23]
[1727420883719,12.23,157.28,157.22,3.1796]
[1727420883917,12.23,157.28,157.2,1.2615]
[1727420884121,3.1794,157.24,157.2,4.4416]
[1727420884825,15.46320623,157.25,157.14,12.23]
[1727420885124,12.23,157.25,157.14,17.81335779]
[1727420885325,3.1799,157.22,157.17,3.1806]
[1727420885622,15.39842835,157.25,157.14,17.81335779]
[1727420885823,3.1801,157.21,157.14,13.5063]
[1727420886023,3.1801,157.21,157.14,17.81335779]
[1727420886519,3.1801,157.21,157.16,3.1807]
[1727420886715,3.1801,157.21,157.14,17.81335779]
[1727420886921,3.1801,157.21,157.14,13.5063]
[1727420887221,3.1801,157.21,157.14,17.81523188]
[1727420887421,3.1801,157.21,157.16,3.1808]
[1727420887818,12.23,157.23,157.14,17.81523188]
[1727420888020,12.23,157.23,157.13,1.313]
[1727420888323,12.23,157.2,157.13,4.31011653]
[1727420888514,12.23,157.2,157.12,1.2495]
[1727420888718,12.23,157.2,157.12,5.5597118]
[1727420888920,12.23,157.2,157.12,1.2495]
[1727420889121,3.1809,157.17,157.13,3.1815]
[1727420889324,12.23,157.2,157.12,1.2495]
[1727420889522,3.1807,157.18,157.13,3.1815]
[1727420890025,12.23,157.2,157.13,3.1815]
[1727420890224,12.23,157.2,157.11,3.1819]
[1727420890525,12.23,157.18,157.1,12.23]
[1727420890826,3.1813,157.15,157.1,15.412]
[1727420891126,12.23,157.18,157.1,15.412]
[1727420891421,12.23,157.18,157.11,3.1819]
[1727420891820,12.23,157.2,157.1,12.23]
[1727420892021,3.1811,157.16,157.12,3.1816]
[1727420896430,12.23,157.2,157.12,3.1816]
[1727420896833,12.23,157.2,157.11,3.1819]
[1727420897025,3.1813,157.15,157.11,3.1819]
[1727420897733,3.1813,157.15,157.12,3.1817]
[1727420897935,3.1809,157.17,157.1,12.23]
[1727420898734,3.1809,157.17,157.13,3.1815]
[1727420898935,12.23,157.2,157.13,3.1815]
[1727420899737,3.1809,157.17,157.13,3.1815]
[1727420900137,3.1809,157.17,157.14,3.1813]
[1727420900639,3.1809,157.17,157.12,12.23]
[1727420900839,3.1809,157.17,157.13,3.1815]
[1727420901138,3.181,157.16,157.13,3.1815]
[1727420901338,12.23,157.2,157.1,19.72448344]
[1727420901642,3.1818,157.12,157.09,4.31046204]
[1727420902530,12.23,157.16,157.09,4.31046204]
[1727420902531,3.182,157.11,157.09,4.31046204]
[1727420902745,1.2458,157.22,157.1,3.1822]
[1727420903045,12.23,157.17,157.1,3.1822]
[1727420903235,3.1815,157.14,157.1,3.1822]
[1727420903430,12.23,157.17,157.1,3.1822]
[1727420903841,3.1815,157.14,157.11,3.1819]
[1727420904939,3.1816,157.13,157.08,12.23]
[1727420905133,3.1816,157.13,157.1,3.1821]
[1727420905537,3.1819,157.12,157.09,3.1823]
[1727420906141,3.1819,157.12,157.06,13.5392]
[1727420906941,3.1819,157.12,157.08,3.1825]
[1727420909035,12.23,157.17,157.07,3.1827]
[1727420909236,12.23,157.14,157.03,13.6079]
[1727420909439,12.23,157.12,157.03,13.6079]
[1727420909637,3.1828,157.07,157.03,16.7913]
[1727420910042,1.2455,157.16,157.01,7.42547852]
[1727420910043,12.23,157.1,157.01,4.31284655]
[1727420910235,3.1833,157.05,157.0,2.6766]
[1727420910435,12.23,157.1,157.01,12.23]
[1727420911234,3.12226017,157.11,157.01,12.23]
[1727420911433,12.23,157.12,157.01,12.23]
[1727420912034,15.37204662,157.12,157.01,12.23]
[1727420912237,3.1828,157.08,157.03,3.1834]
[1727420912446,3.1828,157.08,157.01,12.23]
[1727420913039,3.1828,157.08,157.03,3.1836]
[1727420913442,12.23,157.09,157.0,6.39475816]
[1727420913641,12.23,157.09,157.01,12.23]
[1727420914145,3.183,157.06,157.02,3.1837]
[1727420914338,12.23,157.09,157.01,12.23]
[1727420914536,3.1835,157.04,157.0,6.39495816]
[1727420914749,3.1835,157.04,157.0,3.1842]
[1727420915342,3.1835,157.04,157.0,6.39606864]
[1727420915637,3.1835,157.04,157.0,3.1842]
[1727420915843,3.1832,157.05,157.01,3.184]
[1727420916044,12.23,157.09,157.01,12.23]
[1727420916442,3.1828,157.07,157.01,12.23]
[1727420916943,3.1826,157.08,157.01,12.23]
[1727420917143,3.1826,157.08,156.99,3.23829984]
[1727420917344,12.23,157.11,157.01,12.23]
[1727420917541,3.1829,157.07,157.01,15.35727498]
[1727420918348,3.1826,157.08,157.01,15.35727498]
[1727420918848,3.1826,157.08,157.03,3.1836]
[1727420919444,3.1826,157.08,157.04,3.1834]
[1727420920953,12.23,157.11,157.03,3.1835]
[1727420921349,3.1829,157.07,157.03,3.1835]
[1727420925957,3.183,157.06,157.02,5.7775]
[1727420929360,12.23,157.1,156.99,12.23]
[1727420929559,12.23,157.1,156.99,15.44336993]
[1727420929960,3.1833,157.05,157.01,3.184]
[1727420930161,12.23,157.1,157.01,3.184]
[1727420930554,3.1833,157.05,157.01,3.184]
[1727420930759,12.23,157.07,157.0,3.1841]
[1727420930960,12.23,157.07,156.99,15.44336993]
[1727420931261,3.1834,157.04,156.99,15.44336993]
[1727420931962,3.1834,157.04,157.0,3.1841]
[1727420933363,3.1834,157.04,157.01,3.184]
[1727420933966,12.23,157.08,157.02,3.1838]
[1727420934561,3.1831,157.06,157.02,3.1838]
[1727420935862,3.1829,157.07,157.03,3.1836]
[1727420936365,3.1829,157.07,157.03,11.0036]
[1727420936761,3.1832,157.06,157.02,3.1837]
[1727420936967,7.82,157.08,157.03,7.82]
[1727420937468,3.1831,157.06,157.03,7.82]
[1727420937663,7.82,157.08,157.03,7.82]
[1727420937862,7.82,157.08,157.01,3.1839]
[1727420938061,3.1834,157.05,157.02,7.82]
[1727420939169,3.1835,157.04,157.0,7.82]
[1727420940380,3.1835,157.04,156.99,3.13555493]
[1727420940567,3.1835,157.04,156.93,4.29307905]
[1727420940568,7.82,157.0,156.93,4.29307905]
[1727420940771,7.82,156.98,156.91,2.6272]
[1727420940965,7.82,156.95,156.88,4.29377724]
[1727420941165,23.6200388,157.08,156.85,3.17631779]
[1727420941166,6.3657,157.07,156.91,7.82]
[1727420941467,6.3657,157.07,156.95,11.0052]
[1727420941672,3.1841,157.01,156.96,7.82]
[1727420941869,7.82,157.02,156.96,7.82]
[1727420942171,3.1844,156.99,156.94,2.6272]
[1727420942371,3.1844,156.99,156.96,7.82]
[1727420942571,7.82,157.02,156.96,7.82]
[1727420942874,3.184,157.01,156.94,2.6272]
[1727420943170,4.5100388,157.08,156.98,11.0045]
[1727420943369,7.82,157.03,156.98,11.0045]
[1727420943570,3.1839,157.02,156.98,11.0045]
[1727420943773,7.82,157.03,156.98,11.0045]
[1727420944271,7.82,157.03,156.98,7.82]
[1727420944468,3.1841,157.01,156.98,7.82]
[1727420944669,7.82,157.01,156.94,4.0031]
[1727420944971,7.82,157.01,156.95,7.82]
[1727420945175,7.82,156.99,156.94,2.6272]
[1727420945370,3.1849,156.97,156.94,1.2896]
[1727420945570,7.82,156.98,156.94,1.2896]
[1727420946169,3.1849,156.97,156.94,1.2896]
[1727420947869,7.82,156.98,156.89,1.3759]
[1727420947870,7.82,156.96,156.89,1.3759]
[1727420948072,6.3659,157.07,156.92,7.82]
[1727420948274,12.24,156.99,156.9,13.5222]
[1727420948577,12.24,156.99,156.93,3.1856]
[1727420948873,12.24,156.99,156.9,13.5222]
[1727420949476,3.1851,156.96,156.9,13.5222]
[1727420949676,12.24,156.99,156.9,13.5222]
[1727420949877,3.1855,156.94,156.9,13.5222]
[1727420950677,3.1858,156.93,156.9,13.5222]
[1727420951576,3.1855,156.94,156.9,13.5222]
[1727420951772,12.24,156.99,156.9,13.5222]
[1727420952680,3.1857,156.93,156.9,13.5222]
[1727420954277,3.1857,156.93,156.92,12.24]
[1727420954479,12.24,157.01,156.92,12.24]
[1727420955179,3.1858,156.93,156.92,12.24]
[1727420955979,18.6075,157.03,156.92,15.36512566]
[1727420956180,18.6075,157.03,156.94,12.24]
[1727420956474,3.1852,156.95,156.94,12.24]
[1727420956673,6.3675,157.03,156.94,12.24]
[1727420956879,18.6075,157.03,156.93,15.3758791]
[1727420957080,6.3676,157.02,156.93,12.24]
[1727420957278,3.1854,156.94,156.93,12.24]
[1727420957977,6.3676,157.02,156.93,12.24]
[1727420958379,3.1854,156.94,156.93,12.24]
[1727420958581,3.1854,156.94,156.92,3.25472516]
[1727420958582,12.24,157.01,156.92,3.25472516]
[1727420958796,12.24,157.01,156.91,12.24]
[1727420959278,3.1857,156.93,156.92,3.19450557]
[1727420959681,12.24,156.99,156.9,1.2822]
[1727420959876,3.186,156.91,156.9,1.2822]
[1727420961783,3.186,156.91,156.9,13.5222]
[1727420965588,3.186,156.91,156.9,1.2822]
[1727420975291,3.186,156.91,156.9,9.1222]
[1727420975793,7.84,156.96,156.9,7.84]
[1727420977287,7.84,156.96,156.88,1.2536]
[1727420977492,7.84,156.94,156.88,1.2536]
[1727420977695,7.84,156.94,156.9,7.84]
[1727420978194,3.186,156.91,156.9,7.84]
[1727420979194,3.1864,156.89,156.88,1.2536]
[1727420979492,3.1864,156.89,156.88,9.0936]
[1727420979697,1.3164,156.99,156.88,9.0936]
[1727420979895,6.3681,157.01,156.96,7.84]
[1727420980090,3.1848,156.97,156.96,7.84]
[1727420982089,7.84,157.01,156.96,7.84]
[1727420983198,2.626,157.04,156.98,7.84]
[1727420983391,9.1629,157.04,156.99,7.84]
[1727420983590,1.3229,157.04,156.99,7.84]
[1727420983799,9.1629,157.04,156.99,7.84]
[1727420984095,3.1842,157.0,156.99,7.84]
[1727420984300,9.1629,157.04,156.99,7.84]
[1727420985396,7.84,157.04,156.99,7.84]
[1727420985597,1.3109,157.08,157.02,7.84]
[1727420985904,1.3109,157.08,157.01,7.84]
[1727420985905,101.55226382,157.06,157.01,7.84]
[1727420986295,3.1838,157.02,157.01,7.84]
[1727420986496,101.55226382,157.06,157.01,7.84]
[1727420986900,3.1838,157.02,157.01,7.84]
[1727420987393,3.1838,157.02,156.98,3.1845]
[1727420987598,7.84,157.02,156.94,1.2571]
[1727420987799,93.71226382,157.06,156.97,7.84]
[1727420987998,7.84,157.01,156.97,7.84]
[1727420988194,7.84,157.01,156.94,4.4425]
[1727420988398,7.84,157.01,156.96,7.84]
[1727420988893,7.84,157.02,156.97,7.84]
[1727420989894,3.1846,156.98,156.97,7.84]
[1727420992399,93.71226382,157.06,156.97,7.84]
[1727420992599,93.71226382,157.06,157.0,7.84]
[1727420992600,7.84,157.04,157.0,7.84]
[1727420993009,3.184,157.01,157.0,7.84]
[1727420994112,93.71226382,157.06,157.0,7.84]
[1727420994404,93.71226382,157.06,157.05,7.84]
[1727420994607,96.89526382,157.06,157.05,7.84]
[1727420996311,96.89526382,157.06,157.03,15.4036]
[1727420996508,3.1832,157.05,157.03,12.22]
[1727420999409,93.71226382,157.06,157.03,12.22]
[1727420999802,3.1834,157.05,157.03,12.22]
[1727421000112,3.1834,157.05,156.95,4.30245171]
[1727421000113,93.71226382,157.06,156.95,4.30245171]
[1727421000312,3.1837,157.03,157.0,12.22]
[1727421001812,3.1837,157.03,157.0,15.4042]
[1727421002016,3.1837,157.03,157.01,12.22]
[1727421002216,93.71226382,157.06,157.01,12.22]
[1727421002408,75.1606,157.2,157.05,12.22]
[1727421002607,3.1821,157.11,157.07,12.22]
[1727421002808,12.22,157.18,157.07,12.22]
[1727421003314,3.1821,157.11,157.07,15.4026]
[1727421003915,3.1822,157.1,157.07,15.4026]
[1727421004816,3.1825,157.09,157.07,12.22]
[1727421005815,3.1825,157.09,157.06,3.183]
[1727421006020,3.1825,157.09,157.07,12.22]
[1727421006319,12.22,157.18,157.07,15.4027]
[1727421006915,3.1821,157.11,157.07,15.4027]
[1727421007817,3.1822,157.1,157.07,12.22]
[1727421008423,12.22,157.16,157.07,12.22]
[1727421009218,12.22,157.16,157.06,12.22]
[1727421009719,3.1825,157.09,157.06,15.4028]
[1727421010219,12.22,157.16,157.06,12.22]
[1727421010817,3.1822,157.1,157.06,15.4029]
[1727421011217,3.8801,157.19,157.08,12.22]
[1727421011423,16.1001,157.19,157.08,12.22]
[1727421011631,16.1001,157.19,157.07,3.1826]
[1727421011921,16.1001,157.19,157.08,12.22]
[1727421012518,3.1822,157.1,157.08,12.22]
[1727421013513,3.1821,157.11,157.08,15.4025]